[Event "EUSA-ch Open 2019"]
[Site "Budapest"]
[Date "2019.07.28"]
[Round "9.6"]
[White "Popiol, Michal"]
[Black "Petrosyan, Tigran S."]
[Result "1/2-1/2"]
[ECO "D31"]
[WhiteElo "2187"]
[BlackElo "2448"]
[Annotator "NA"]
[PlyCount "151"]
[EventDate "2019.07.23"]
[EventType "team-tourn"]
[EventCountry "HUN"]
[SourceTitle "playchess.com"]
[Source "ChessBase"]
[SourceQuality "1"]
[TimeControl "1500+10"]

1. c4 {[%emt 0:03:10]} e6 {[%emt 0:00:00]} 2. Nc3 {[%emt 0:00:06]} d5 {[%emt 0:00:00]} 3. d4 {[%emt 0:00:02]} Be7 {[%emt 0:00:10]} 4. cxd5 {[%emt 0:00:15]} exd5 {[%emt 0:00:01]} 5. Bf4 {[%emt 0:00:02]} c6 {[%emt 0:00:19]} 6. e3 {[%emt 0:00:01]} Bf5 {[%emt 0:00:11]} 7. Be2 {[%emt 0:00:13]} Nd7 {[%emt 0:00:14]} 8. Nf3 {[%emt 0:01:00]} h6 {[%emt 0:01:35]} 9. Ne5 {[%emt 0:00:47]} Ngf6 {[%emt 0:00:56]} 10. g4 {[%emt 0:02:52]} Be6 {[%emt 0:00:41]} 11. h3 {[%emt 0:00:31]} Nxe5 {[%emt 0:01:57]} 12. Bxe5 {[%emt 0:00:09]} O-O {[%emt 0:02:14]} 13. Bd3 {[%emt 0:00:57]} Nd7 {[%emt 0:01:11]} 14. Bh2 {[%emt 0:00:10]} c5 {[%emt 0:03:27]} 15. Bf5 {[%emt 0:02:03]} cxd4 {[%emt 0:01:31]} 16. Qxd4 {[%emt 0:00:03]} Bf6 {[%emt 0:00:15]} 17. Qd2 {[%emt 0:00:10]} Bxf5 {[%emt 0:00:49]} 18. gxf5 {[%emt 0:00:01]} Nb6 {[%emt 0:00:02]} 19. Rd1 {[%emt 0:01:36]} Nc4 {[%emt 0:01:39]} 20. Qe2 {[%emt 0:00:01]} Qa5 {[%emt 0:04:02]} 21. O-O {[%emt 0:00:01]} Rad8 {[%emt 0:00:19]} 22. Nxd5 {[%emt 0:01:05]} Rxd5 {[%emt 0:00:07]} 23. Qxc4 {[%emt 0:00:01]} Rxd1 {[%emt 0:00:10]} 24. Rxd1 {[%emt 0:00:02]} Qxf5 {[%emt 0:00:04]} 25. Kg2 {[%emt 0:01:10]} Rc8 {[%emt 0:00:36]} 26. Qd5 {[%emt 0:01:46]} Qxd5+ {[%emt 0:00:42]} 27. Rxd5 {[%emt 0:00:01]} Rc2 {[%emt 0:00:00]} 28. Be5 {[%emt 0:00:02]} Bxe5 {[%emt 0:00:12]} 29. Rxe5 {[%emt 0:00:01]} Rxb2 {[%emt 0:00:01]} 30. Re7 {[%emt 0:00:01]} a6 {[%emt 0:00:34]} 31. a4 {[%emt 0:00:01]} g6 {[%emt 0:01:38]} 32. Kg3 {[%emt 0:02:58]} Kg7 {[%emt 0:00:06]} 33. Rc7 {[%emt 0:00:13]} h5 {[%emt 0:00:06]} 34. h4 {[%emt 0:00:29]} Rb4 {[%emt 0:00:14]} 35. f3 {[%emt 0:00:13]} b5 {[%emt 0:00:19]} 36. axb5 {[%emt 0:00:06]} axb5 {[%emt 0:00:01]} 37. e4 {[%emt 0:00:39]} Kf6 {[%emt 0:00:03]} 38. Kf4 {[%emt 0:00:02]} Rc4 {[%emt 0:01:42]} 39. Rb7 {[%emt 0:00:07]} Rc5 {[%emt 0:00:07]} 40. Rb6+ {[%emt 0:00:11]} Kg7 {[%emt 0:00:05]} 41. Rb7 {[%emt 0:00:09]} Kf8 {[%emt 0:00:33]} 42. Rb8+ {[%emt 0:00:05]} Ke7 {[%emt 0:00:01]} 43. Rb7+ {[%emt 0:00:01]} Ke6 {[%emt 0:00:04]} 44. Rb6+ {[%emt 0:00:03]} Kd7 {[%emt 0:00:17]} 45. Rb7+ {[%emt 0:00:01]} Kc8 {[%emt 0:01:40]} 46. Rxf7 {[%emt 0:00:25]} b4 {[%emt 0:00:01]} 47. Rf6 {[%emt 0:03:01]} Rb5 {[%emt 0:00:06]} 48. Rxg6 {[%emt 0:00:02]} b3 {[%emt 0:00:01]} 49. Rg1 {[%emt 0:00:01]} b2 {[%emt 0:00:00]} 50. Rb1 {[%emt 0:00:00]} Kd7 {[%emt 0:00:04]} 51. Ke3 {[%emt 0:00:09]} Ke6 {[%emt 0:00:19]} 52. Kd4 {[%emt 0:02:50]} Rb3 {[%emt 0:00:10]} 53. Kc4 {[%emt 0:00:02]} Rxf3 {[%emt 0:00:27]} 54. Rxb2 {[%emt 0:00:01]} Rf4 {[%emt 0:00:14]} 55. Kd4 {[%emt 0:00:02]} Rxh4 {[%emt 0:00:19]} 56. Rb6+ {[%emt 0:00:01]} Ke7 {[%emt 0:00:44]} 57. Ke5 {[%emt 0:00:02]} Rg4 {[%emt 0:00:13]} 58. Rb7+ {[%emt 0:00:09]} Kf8 {[%emt 0:00:15]} 59. Kf5 {[%emt 0:01:50]} Rg7 {[%emt 0:00:10]} 60. Rb8+ {[%emt 0:00:24]} Ke7 {[%emt 0:00:03]} 61. Rh8 {[%emt 0:00:03]} Rf7+ {[%emt 0:00:21]} 62. Ke5 {[%emt 0:00:00]} Rg7 {[%emt 0:00:14]} 63. Rxh5 {[%emt 0:00:02]} Rg6 {[%emt 0:00:06]} 64. Rh7+ {[%emt 0:00:05]} Ke8 {[%emt 0:00:00]} 65. Kf5 {[%emt 0:00:14]} Ra6 {[%emt 0:00:04]} 66. e5 {[%emt 0:00:03]} Rb6 {[%emt 0:00:04]} 67. Ra7 {[%emt 0:00:53]} Rc6 {[%emt 0:00:02]} 68. Ke4 {[%emt 0:00:56]} Rb6 {[%emt 0:00:05]} 69. Kd5 {[%emt 0:00:01]} Rh6 {[%emt 0:00:03]} 70. Ra8+ {[%emt 0:01:01]} Ke7 {[%emt 0:00:01]} 71. Ra7+ {[%emt 0:00:03]} Ke8 {[%emt 0:00:01]} 72. Rc7 {[%emt 0:00:05]} Rg6 {[%emt 0:00:11]} 73. Ra7 {[%emt 0:00:33]} Rh6 {[%emt 0:00:08]} 74. e6 {[%emt 0:00:17]} Rh1 {[%emt 0:00:02]} 75. Kd6 {[%emt 0:00:03]} Rd1+ {[%emt 0:00:01]} 76. Ke5 {[%emt 0:00:02]} 1/2-1/2